bitfinex/quotes_ETHUSD_20250223
["timestamp","ask_amount","ask_price","bid_price","bid_amount"]
[1740343385831,0.005,2803.9,2803.5,4.39366]
[1740343385994,3.57152,2803.9,2803.8,0.03865678]
[1740343386193,3.57152,2803.9,2803.5,0.8267]
[1740343386431,3.57152,2803.9,2803.8,0.03865678]
[1740343386633,3.57152,2803.9,2803.7,0.8267]
[1740343386634,0.005,2803.9,2803.7,0.8267]
[1740343386831,0.005,2803.9,2803.8,0.03865678]
[1740343387196,0.005,2803.9,2803.7,0.8267]
[1740343387394,0.005,2803.9,2803.8,0.03732436]
[1740343387730,0.005,2803.9,2803.7,0.8267]
[1740343387898,0.005,2803.9,2803.8,0.03732436]
[1740343388429,0.005,2803.9,2803.7,0.8267]
[1740343388630,0.005,2803.9,2803.8,0.03742268]
[1740343389028,0.005,2803.9,2803.7,0.8267]
[1740343389198,0.005,2803.9,2803.8,0.03742268]
[1740343389526,0.005,2803.9,2803.7,0.8267]
[1740343389736,0.005,2803.9,2803.8,0.03742268]
[1740343390131,0.005,2803.9,2803.7,0.8267]
[1740343390352,0.005,2803.9,2803.8,0.03742268]
[1740343390824,0.005,2803.9,2803.7,0.8267]
[1740343391017,0.005,2803.9,2803.8,0.03742268]
[1740343391332,0.005,2803.9,2803.7,0.8267]
[1740343391496,0.005,2803.9,2803.8,0.03742268]
[1740343391698,0.005,2803.9,2803.7,0.8267]
[1740343392030,0.005,2803.9,2803.8,0.03742268]
[1740343392335,0.005,2803.9,2803.7,0.8267]
[1740343392532,0.005,2803.9,2803.8,0.03742268]
[1740343393015,0.005,2803.9,2803.7,0.8267]
[1740343393222,3.57146,2803.9,2803.8,0.03742268]
[1740343393616,3.57146,2803.9,2803.5,4.32321]
[1740343393811,4.40346,2803.9,2803.8,0.03742268]
[1740343394013,4.40346,2803.9,2803.5,3.56696]
[1740343394214,0.837,2803.9,2803.8,0.03742268]
[1740343394414,0.837,2803.9,2803.5,3.56696]
[1740343394615,0.837,2803.9,2803.8,0.03742268]
[1740343394819,4.40347,2803.9,2803.4,3.56699]
[1740343395137,4.40347,2803.9,2803.4,4.8766338]
[1740343395441,4.40347,2803.9,2803.5,0.03751922]
[1740343395943,4.40347,2803.9,2803.5,3.60446922]
[1740343401467,0.837,2803.9,2803.5,0.03751922]
[1740343401764,0.837,2803.9,2803.5,3.60443922]
[1740343402257,1.1070842,2803.9,2803.5,3.60443922]
[1740343403570,1.1070842,2803.9,2803.5,0.03751922]
[1740343403776,1.1070842,2803.9,2803.5,3.60440922]
[1740343404274,3.56661,2803.8,2803.5,0.03751922]
[1740343404435,4.6735542,2803.9,2803.5,0.03751922]
[1740343404635,4.6735542,2803.9,2803.5,3.60444922]
[1740343405366,4.6735542,2803.9,2803.5,0.03751922]
[1740343407347,8.2401042,2803.9,2803.5,0.03751922]
[1740343409488,4.6735542,2803.9,2803.5,0.03751922]
[1740343409688,3.56659,2803.8,2803.5,0.03751922]
[1740343411593,4.6735542,2803.9,2803.5,1.35091894]
[1740343416006,4.6735542,2803.9,2803.5,3.60447922]
[1740343416205,1.1070842,2803.9,2803.5,3.60447922]
[1740343416812,0.2750842,2803.9,2803.5,3.60447922]
[1740343419729,0.2750842,2803.9,2803.6,3.56678]
[1740343420083,0.2750842,2803.9,2803.7,0.03755322]
[1740343420284,0.2750842,2803.9,2803.7,0.82535322]
[1740343421497,0.2750842,2803.9,2803.7,4.39206322]
[1740343421703,0.2750842,2803.9,2803.7,0.82535322]
[1740343422497,0.2750842,2803.9,2803.7,0.03755322]
[1740343424508,3.8415642,2803.9,2803.7,0.03755322]
[1740343424679,0.2750842,2803.9,2803.6,3.56683]
[1740343424883,0.2750842,2803.9,2803.7,0.03755322]
[1740343425081,0.2750842,2803.9,2803.5,4.35474]
[1740343425281,0.2750842,2803.9,2803.6,0.0375854]
[1740343426214,3.56671,2803.7,2803.6,0.0375854]
[1740343426621,3.56709,2803.4,2803.0,8.77339799]
[1740343426918,3.56698,2803.5,2803.0,9.56119799]
[1740343427138,1.0362842,2803.9,2803.2,0.7878]
[1740343427342,4.6028242,2803.9,2803.3,3.56709]
[1740343427642,4.6028242,2803.9,2803.4,3.56698]
[1740343428139,8.1693642,2803.9,2803.4,3.56698]
[1740343429239,8.1693642,2803.9,2803.7,3.56671]
[1740343429240,0.2750842,2803.9,2803.7,3.56671]
[1740343429539,0.2750842,2803.9,2803.5,4.35061]
[1740343430402,3.8415442,2803.9,2803.5,4.35061]
[1740343431726,0.2750842,2803.9,2803.5,4.35061]
[1740343432120,0.2750842,2803.9,2803.5,7.91751]
[1740343432318,0.2750842,2803.9,2803.5,4.3506]
[1740343432542,0.2750842,2803.9,2803.5,5.2215949]
[1740343433143,0.2750842,2803.9,2803.5,5.2216449]
[1740343433839,3.8416042,2803.9,2803.5,1.6546949]
[1740343434041,3.8416042,2803.9,2803.5,4.35061]
[1740343434541,3.8416042,2803.9,2803.6,0.03629591]
[1740343434762,0.2750842,2803.9,2803.7,3.56663]
[1740343435247,0.2750842,2803.9,2803.8,0.03623155]
[1740343435542,0.2750842,2803.9,2803.6,3.56683]
[1740343435738,0.2750842,2803.9,2803.8,0.03623155]
[1740343435941,0.005,2803.9,2803.8,4.28355716]
[1740343436241,0.005,2803.9,2803.8,5.13718871]
[1740343441549,0.005,2803.9,2803.8,10.3430767]
[1740343442520,0.005,2803.9,2803.8,12.24439148]
[1740343444722,0.005,2803.9,2803.8,12.95717464]
[1740343445157,0.005,2803.9,2803.8,12.96862107]
[1740343447486,0.005,2803.9,2803.8,21.77862107]
[1740343451579,0.005,2803.9,2803.8,20.42730629]
[1740343451783,0.005,2803.9,2803.8,19.16452313]
[1740343453477,0.005,2803.9,2803.8,10.35452313]
[1740343456042,0.005,2803.9,2803.8,11.70583791]
[1740343458084,0.005,2803.9,2803.8,12.25583791]
[1740343458739,0.005,2803.9,2803.8,10.90452313]
[1740343458940,0.005,2803.9,2803.8,5.97054313]
[1740343459159,0.7981,2803.9,2803.8,5.25356597]
[1740343460872,0.7981,2803.9,2803.8,8.82014597]
[1740343461274,0.7981,2803.9,2803.8,5.25356597]
[1740343463787,0.7981,2803.9,2803.8,8.82014597]
[1740343464181,0.005,2803.9,2803.8,8.82014597]
[1740343464368,0.005,2803.9,2803.8,10.05882257]
[1740343466285,0.005,2803.9,2803.8,8.82014597]
[1740343466470,0.7981,2803.9,2803.8,5.25356597]
[1740343473476,0.7981,2803.9,2803.8,8.82014597]
[1740343473698,0.005,2803.9,2803.8,8.82014597]
[1740343474895,0.005,2803.9,2803.8,9.59174597]
[1740343475820,0.005,2803.9,2803.8,8.82014597]
[1740343477505,0.8339,2803.9,2803.8,8.82014597]
[1740343478682,0.8339,2803.9,2803.8,5.25356597]
[1740343482721,4.40036,2803.9,2803.8,0.04767798]
[1740343483069,0.8289,2803.5,2803.3,5.20588799]
[1740343483469,4.39587,2803.5,2803.3,5.20588799]
[1740343484012,0.8289,2803.5,2803.3,5.20588799]
[1740343486099,0.8289,2803.5,2803.1,7.13483]
[1740343486304,0.8289,2803.5,2803.2,3.56733]
[1740343487152,0.8289,2803.5,2803.1,3.56741]
[1740343487276,0.8289,2803.5,2803.2,3.56723]
[1740343488337,0.8289,2803.5,2803.2,3.56731]
[1740343488621,0.8289,2803.5,2803.3,3.56721]
[1740343488923,0.8289,2803.5,2803.2,3.56734]
[1740343489826,0.8289,2803.5,2803.3,3.56721]
[1740343490196,0.8289,2803.5,2803.1,5.4028998]
[1740343490523,0.8289,2803.5,2803.2,3.56727]
[1740343494209,0.8289,2803.5,2803.3,0.03745741]
[1740343494583,0.8289,2803.5,2803.2,3.56727]
[1740343494782,0.8289,2803.5,2803.4,0.03742275]
[1740343494983,0.8289,2803.5,2803.3,0.03745741]
[1740343495184,0.8289,2803.5,2803.4,0.03742275]
[1740343495529,0.8289,2803.5,2803.0,8.77346799]
[1740343495724,0.8289,2803.5,2803.4,0.03511022]
[1740343495900,0.8289,2803.5,2803.1,3.56741]
[1740343496230,0.8289,2803.5,2803.2,0.03517459]
[1740343496428,0.8289,2803.5,2803.2,3.60251459]
[1740343500654,0.8289,2803.5,2803.2,3.60249459]
[1740343501451,0.8289,2803.5,2803.2,3.61469619]
[1740343503600,0.8289,2803.5,2803.2,0.04737619]
[1740343503903,0.8289,2803.5,2803.1,3.56747]
[1740343504075,0.8289,2803.5,2803.2,0.04742125]
[1740343504691,3.56711,2803.4,2803.2,0.04742125]
[1740343504889,3.56747,2803.1,2803.0,5.20588799]
[1740343505095,3.5678,2802.9,2802.7,5.20588799]
[1740343505290,4.37281,2803.0,2802.7,5.20588799]
[1740343505603,3.56775,2802.9,2802.7,5.20588799]
[1740343507502,3.56786,2802.8,2802.7,5.20588799]
[1740343507700,4.373,2802.9,2802.7,5.20588799]
[1740343508009,3.56786,2802.8,2802.7,5.20588799]
[1740343508372,3.56786,2802.8,2802.4,5.20588799]
[1740343508716,4.37294,2802.9,2802.4,8.77419799]
[1740343509024,4.37294,2802.9,2802.4,8.77418799]
[1740343509517,4.37294,2802.9,2802.5,0.04401254]
[1740343510067,4.37294,2802.9,2802.5,3.61224254]
[1740343512006,0.8052,2802.9,2802.5,3.61224254]
[1740343513908,5.68332334,2802.6,2802.5,0.06718338]
[1740343514116,5.68332334,2802.6,2801.9,3.56898]
[1740343514409,3.56841,2802.4,2802.0,0.06673562]
[1740343514603,3.56849,2802.3,2802.0,0.06673562]
[1740343514804,0.763,2802.2,2802.0,0.06673562]
[1740343515395,0.763,2802.2,2802.0,0.09342986]
[1740343516398,4.764869,2802.2,2802.0,0.09342986]
[1740343516599,3.56875,2802.1,2802.0,0.09342986]
[1740343516800,3.56901,2801.9,2801.7,5.20588799]
[1740343517004,0.763,2801.8,2801.7,5.20588799]
[1740343517606,4.33213,2801.8,2801.7,5.20588799]
[1740343517917,0.763,2801.8,2801.7,5.20588799]
[1740343518912,0.763,2801.8,2801.5,3.56951]
[1740343519132,0.7929,2802.1,2801.5,1.3147158]
[1740343519312,1.06398336,2802.6,2802.5,3.56824]
[1740343519618,0.7929,2802.6,2802.4,3.56825]
[1740343521098,0.7929,2802.6,2802.3,3.56848]
[1740343521303,0.7929,2802.6,2802.1,4.38703]
[1740343521491,0.7929,2802.6,2802.2,3.5686]
[1740343521692,0.7929,2802.6,2802.0,3.56877]
[1740343521693,2.110783,2802.6,2802.0,3.56877]
[1740343521889,2.110783,2802.6,2802.2,3.56855]
[1740343522212,2.110783,2802.6,2802.1,3.56874]
[1740343522393,2.110783,2802.6,2802.3,3.56848]
[1740343523326,0.7929,2802.6,2802.4,3.56835]
[1740343523612,5.25,2802.8,2802.4,3.56827]
[1740343523815,0.7929,2802.8,2802.5,3.56812]
[1740343523986,0.7929,2802.8,2802.3,0.8184]
[1740343524187,6.35771757,2803.3,2802.7,3.56798]
[1740343524387,0.27446048,2803.4,2802.3,0.8184]
[1740343524388,0.7929,2803.1,2803.0,3.5676]
[1740343524789,0.7929,2803.1,2803.0,3.61095241]
[1740343526087,0.7929,2803.1,2803.0,0.04335241]
[1740343526314,0.7929,2803.1,2802.8,3.56779]
[1740343526616,0.7929,2803.1,2803.0,0.04335241]
[1740343526808,0.7929,2803.1,2802.9,0.04339339]
[1740343527004,0.7929,2803.1,2803.0,0.04335241]
[1740343527316,0.7929,2803.1,2802.9,3.56765]
[1740343527488,0.7929,2803.1,2803.0,0.04335241]
[1740343528120,0.7929,2803.1,2803.0,3.61095241]
[1740343528487,0.7929,2803.1,2803.0,0.04335241]
[1740343529110,3.84156048,2803.4,2803.0,0.04335241]
[1740343529111,0.27446048,2803.4,2803.0,3.61095241]
[1740343529296,0.8202,2803.3,2803.0,3.61095241]
[1740343530084,0.8202,2803.3,2803.1,3.56746]
[1740343530290,0.8202,2803.3,2803.1,3.61440223]
[1740343530719,0.8202,2803.3,2803.1,3.56746]
[1740343531035,0.8202,2803.3,2802.9,3.56771]
[1740343531316,0.8202,2803.3,2803.0,3.56759]
[1740343531481,0.8202,2803.3,2802.3,0.783]
[1740343531686,4.3876,2803.2,2802.7,3.56792]
[1740343532218,3.56749,2803.1,2802.7,3.56792]
[1740343535142,3.56748,2803.1,2802.7,3.56792]
[1740343535450,0.8202,2803.2,2803.0,3.5676]
[1740343535807,0.27446048,2803.4,2803.2,3.56728]
[1740343536257,0.8062,2803.8,2803.4,3.56709]
[1740343536740,0.8062,2803.8,2803.3,3.5672]
[1740343536892,0.8062,2803.8,2803.4,3.56709]
[1740343537097,1.07699216,2803.8,2803.4,3.56709]
[1740343541269,3.56671,2803.7,2803.3,3.5672]
[1740343541482,0.8062,2803.5,2803.1,3.56746]
[1740343541936,0.8062,2803.5,2803.2,3.56725]
[1740343542268,0.8062,2803.5,2803.1,3.56746]
[1740343543249,4.37317,2803.5,2803.1,3.56746]
[1740343543451,0.8062,2803.5,2803.0,5.20588799]
[1740343543660,4.37349,2803.3,2803.0,5.20588799]
[1740343543859,4.37343,2803.3,2803.0,5.20588799]
[1740343545022,3.56736,2803.2,2803.0,5.20588799]
[1740343545222,0.8062,2803.1,2802.7,3.56793]
[1740343545765,0.8062,2803.1,2802.8,3.56782]
[1740343546138,0.8062,2803.1,2802.9,3.56773]
[1740343551652,0.8062,2803.1,2803.0,3.5676]
[1740343552039,0.7828,2803.5,2803.2,3.56734]
[1740343552240,1.14012176,2803.5,2803.2,3.56723]
[1740343553365,0.7828,2803.5,2803.3,3.56713]
[1740343554233,0.7837,2803.7,2803.4,3.56709]
[1740343555066,0.7837,2803.7,2803.3,3.56713]
[1740343555976,0.7837,2803.7,2803.3,7.13426]
[1740343556145,0.7837,2803.7,2803.4,3.56708]
[1740343556440,1.2100159,2803.7,2803.4,3.56708]
[1740343556688,0.7837,2803.4,2803.0,5.20588799]
[1740343556976,4.35085,2803.4,2803.0,5.20588799]
[1740343557273,3.56728,2803.3,2803.0,5.20588799]
[1740343557776,0.7837,2803.2,2803.0,5.20588799]
[1740343557943,4.28160976,2803.1,2803.0,5.20588799]
[1740343558142,0.71413976,2803.1,2803.0,5.20588799]
[1740343559280,4.28160976,2803.1,2803.0,5.20588799]
[1740343560474,4.28160976,2803.1,2802.4,3.56826]
[1740343560475,0.7837,2803.0,2802.4,3.56826]
[1740343560792,3.56779,2802.9,2802.4,3.56826]
[1740343561882,7.13559,2802.9,2802.4,3.56826]
[1740343562089,3.56779,2802.9,2802.4,3.56826]
[1740343562849,7.13559,2802.9,2802.4,3.56826]
[1740343564486,3.56779,2802.9,2802.4,3.56826]
[1740343564654,7.1356,2802.9,2802.4,3.56826]
[1740343565468,3.56779,2802.9,2802.4,3.56826]
[1740343565966,7.13559,2802.9,2802.4,3.56826]
[1740343566184,3.56779,2802.9,2802.4,3.56826]
[1740343566572,7.13562,2802.9,2802.4,3.56826]
[1740343566772,7.40825324,2802.9,2802.4,3.56826]
[1740343567687,8.29886254,2802.9,2802.5,0.05871447]
[1740343567884,4.73103254,2802.9,2802.5,0.05871447]
[1740343568091,1.16324254,2802.9,2802.5,3.62690447]
[1740343568683,1.16324254,2802.9,2802.6,3.56799]
[1740343568884,0.7837,2803.0,2802.7,3.62655176]
[1740343569088,0.7837,2803.0,2802.8,3.56784]
[1740343569296,0.7617,2803.2,2802.9,3.62621906]
[1740343570387,0.26459615,2803.1,2802.9,0.05848906]
[1740343570594,0.26459615,2803.1,2802.6,3.56802]
[1740343570776,0.26459615,2803.1,2803.0,0.04705612]
[1740343570976,0.26459615,2803.1,2802.8,3.56785]
[1740343570977,1.08069077,2803.1,2802.8,3.56785]
[1740343571183,4.32911,2803.2,2803.0,0.04705612]
[1740343571383,4.32911,2803.2,2802.6,8.77390799]
[1740343571731,0.7617,2803.1,2802.6,5.20588799]
[1740343571877,3.56771,2803.0,2802.6,5.20588799]
[1740343572084,3.56771,2803.0,2802.7,0.05871654]
[1740343572282,0.78969,2802.9,2802.7,0.05871654]
[1740343573847,4.35743,2802.9,2802.7,0.05871654]
[1740343574807,0.78969,2802.9,2802.7,0.05871654]
[1740343575608,0.78969,2802.9,2802.5,3.56817]
[1740343575808,3.56766,2803.0,2802.8,0.05866019]
[1740343576041,3.56766,2803.0,2802.5,3.56817]
[1740343576532,3.56766,2803.0,2802.6,0.04716755]
[1740343576731,0.27416374,2803.2,2802.6,0.04716755]
[1740343576732,3.56798,2802.7,2802.6,0.04716755]
[1740343576930,4.32408,2802.7,2802.1,5.20588799]
[1740343577137,3.5683,2802.5,2802.0,3.56882]
[1740343577441,3.5683,2802.5,2801.9,9.59909799]
[1740343577646,3.56842,2802.4,2801.9,9.59909799]
[1740343578349,0.7561,2802.3,2801.9,9.59909799]
[1740343579249,0.7561,2802.3,2802.0,3.56885]
[1740343580208,0.7561,2802.3,2801.9,9.59918799]
[1740343581214,0.7561,2802.3,2802.0,3.56887]
[1740343581553,0.7561,2802.3,2801.9,5.20588799]
[1740343581753,4.757112,2802.3,2801.7,4.39355]
[1740343581912,4.32466,2802.3,2801.8,3.5691]
[1740343583046,7.89323,2802.3,2801.8,3.5691]
[1740343583707,4.32466,2802.3,2801.7,3.56919]
[1740343583911,3.56872,2802.2,2801.7,3.56926]
[1740343584146,4.027489,2802.2,2801.7,3.56926]
[1740343584325,4.027489,2802.2,2801.8,0.04768907]
[1740343584326,3.56875,2802.1,2801.8,0.04768907]
[1740343584526,3.56875,2802.1,2801.7,3.56926]
[1740343584726,3.56875,2802.1,2801.9,0.04764397]
[1740343584938,3.56875,2802.1,2801.7,3.56926]
[1740343585138,3.56875,2802.1,2802.0,0.04759886]
[1740343585338,4.4039619,2802.1,2801.7,3.56926]
[1740343585538,4.4039619,2802.1,2802.0,0.04759886]
[1740343585739,4.4039619,2802.1,2801.7,3.56926]
[1740343585927,3.56875,2802.1,2802.0,0.04759886]
[1740343586250,3.56875,2802.1,2801.7,3.56926]
[1740343586426,3.56875,2802.1,2802.0,0.04759886]
[1740343586628,3.56875,2802.1,2801.7,3.56926]
[1740343586829,3.56875,2802.1,2802.0,0.04759886]
[1740343587029,4.4039619,2802.1,2802.0,0.04759886]
[1740343587560,4.4039619,2802.1,2801.7,3.56926]
[1740343587853,3.56875,2802.1,2802.0,0.04759886]
[1740343588017,3.56875,2802.1,2801.7,3.56926]
[1740343588218,3.56875,2802.1,2802.0,0.04759886]
[1740343589948,3.56875,2802.1,2802.0,0.0436371]
[1740343590145,4.4039619,2802.1,2801.7,3.56926]
[1740343590456,3.56875,2802.1,2802.0,0.0436371]
[1740343590663,3.56875,2802.1,2801.7,3.56926]
[1740343590861,3.56875,2802.1,2802.0,0.0436371]
[1740343591068,3.56875,2802.1,2801.7,3.56926]
[1740343591382,0.458769,2802.2,2801.7,3.56926]
[1740343591578,4.32461,2802.3,2801.8,3.61276911]
[1740343591787,7.8932,2802.3,2801.8,3.61276911]
[1740343591984,3.56868,2802.2,2801.8,0.04371911]
[1740343592162,0.7561,2802.3,2801.6,5.20588799]
[1740343592362,0.26302999,2802.4,2801.9,0.0436781]
[1740343592695,0.47816975,2802.4,2802.0,3.56876]
[1740343593045,0.47816975,2802.4,2802.1,0.0435961]
[1740343593652,3.56852,2802.3,2802.1,0.0435961]
[1740343593852,7.13713,2802.3,2802.1,0.0435961]
[1740343594291,3.56865,2802.2,2801.8,3.56912]
[1740343594789,3.56851,2802.3,2801.8,3.56912]
[1740343595097,7.13709,2802.3,2801.8,3.56912]
[1740343595259,3.56851,2802.3,2801.8,3.56912]
[1740343595462,7.1371,2802.3,2801.8,3.56912]
[1740343595765,3.56851,2802.3,2801.8,3.56912]
[1740343596179,3.56851,2802.3,2801.8,7.13816]
[1740343596386,3.56851,2802.3,2801.8,3.56904]
[1740343596805,7.13711,2802.3,2801.8,3.56904]
[1740343597012,0.47816975,2802.4,2802.1,3.5687]
[1740343597211,0.26302999,2802.4,2802.2,0.7699]
[1740343597668,0.26302999,2802.4,2802.1,3.5687]
[1740343597876,0.7913,2802.7,2802.0,0.7699]
[1740343598225,0.7913,2803.0,2802.7,3.5679]
[1740343598521,0.7913,2803.0,2802.6,3.56799]
[1740343598870,0.7913,2803.0,2802.4,0.7699]
[1740343599120,1.55459037,2803.0,2802.5,3.56816]
[1740343599286,3.56786,2802.8,2802.4,4.33819]
[1740343599491,3.56773,2802.9,2802.5,0.04361995]
[1740343600314,3.56804,2802.7,2802.5,0.04361995]
[1740343600515,3.56786,2802.8,2802.5,0.04361995]
[1740343600813,4.35891,2803.0,2802.6,0.04357896]
[1740343601021,0.792647,2802.9,2802.6,3.56811]
[1740343601379,0.792647,2802.9,2802.7,0.04353798]
[1740343601917,4.360397,2802.9,2802.7,0.04353798]
[1740343602216,4.360397,2802.9,2802.4,3.56828]
[1740343602687,3.56787,2802.8,2802.4,3.56828]
[1740343602893,4.360387,2802.9,2802.5,0.04361995]
[1740343603618,0.792647,2802.9,2802.6,3.56809]
[1740343603826,0.792647,2802.9,2802.6,3.61166896]
[1740343604623,0.7913,2803.0,2802.6,3.61166896]
[1740343605280,4.35891,2803.0,2802.6,3.61166896]
[1740343605997,0.7913,2803.0,2802.6,7.17969896]
[1740343606428,0.7913,2803.0,2802.6,3.61160896]
[1740343607925,4.35896,2803.0,2802.6,3.61160896]
[1740343608121,0.735896,2802.9,2802.6,3.61160896]
[1740343608343,0.8149,2802.7,2802.6,0.04357896]
[1740343608493,0.8149,2802.7,2802.4,3.56832]
[1740343608708,0.8149,2802.7,2802.5,0.05221615]
[1740343610461,4.38297,2802.7,2802.5,0.05221615]
[1740343610619,4.006407,2802.6,2802.5,0.05221615]
[1740343610828,3.56831,2802.5,2802.3,5.20588799]
[1740343611734,4.006437,2802.6,2802.3,5.20588799]
[1740343612262,4.32516,2802.4,2802.3,5.20588799]
[1740343612469,4.32516,2802.4,2802.0,3.56887]
[1740343612625,3.56855,2802.3,2801.8,3.56912]
[1740343612825,4.8015057,2802.4,2801.9,3.56898]
[1740343613020,4.8015057,2802.4,2801.9,3.56895]
[1740343613220,4.8015057,2802.4,2801.9,3.56892]
[1740343613468,4.8015057,2802.4,2801.9,7.13784]
[1740343614162,4.8015057,2802.4,2801.9,3.56892]
[1740343614361,4.8015057,2802.4,2802.0,0.05255598]
[1740343615271,5.07071035,2802.4,2802.0,0.05255598]
[1740343616366,5.07071035,2802.4,2802.0,3.62136598]
[1740343616553,4.59437465,2802.4,2802.0,3.62136598]
[1740343616756,0.26920465,2802.4,2802.0,3.62136598]
[1740343616939,0.26920465,2802.4,2802.2,3.56861]
[1740343617348,0.26920465,2802.4,2802.3,0.05240565]
[1740343617555,0.26920465,2802.4,2802.1,0.7752]
[1740343617755,0.26920465,2802.4,2802.3,0.05240565]
[1740343617955,0.26920465,2802.4,2802.1,4.34388]
[1740343618165,0.26920465,2802.4,2802.3,0.05240565]
[1740343618372,0.26920465,2802.4,2802.1,4.34388]
[1740343618567,0.26920465,2802.4,2802.3,0.05240565]
[1740343618821,0.26920465,2802.4,2802.1,4.34388]
[1740343619026,0.26920465,2802.4,2802.3,0.05240565]
[1740343619178,0.26920465,2802.4,2802.1,3.56868]
[1740343619383,3.83759465,2802.4,2802.3,0.05240565]
[1740343619598,3.83759465,2802.4,2801.9,3.56892]
[1740343619599,4.57818212,2802.4,2801.9,3.56892]
[1740343619813,0.7916,2802.3,2801.9,3.56892]
[1740343620430,0.7916,2802.3,2802.0,3.56875]
[1740343620783,0.7916,2802.3,2802.1,3.5687]
[1740343622750,0.7916,2802.3,2801.8,4.34423]
[1740343622927,0.7916,2802.3,2802.0,3.56886]
[1740343623547,0.26920465,2802.4,2802.1,3.56874]
[1740343625542,0.26920465,2802.4,2802.2,3.56859]
[1740343625715,0.26920465,2802.4,2801.9,3.56892]
[1740343625917,0.26920465,2802.4,2802.1,3.56873]
[1740343626731,0.26920465,2802.4,2802.2,3.56861]
[1740343628604,0.26920465,2802.4,2802.1,3.56873]
[1740343629453,0.26920465,2802.4,2802.2,0.04770388]
[1740343629914,0.26920465,2802.4,2802.2,3.61629388]
[1740343633117,0.7956,2802.8,2802.3,0.7894]
[1740343633351,0.7956,2802.8,2802.6,3.56802]
[1740343633519,6.0456,2803.1,2802.6,3.56799]
[1740343633846,0.7956,2803.1,2802.8,3.56783]
[1740343634049,0.7956,2803.1,2802.8,7.13556]
[1740343634218,0.7956,2803.1,2802.9,0.04343512]
[1740343637253,3.0,2803.0,2802.6,3.56811]
[1740343637413,3.40697637,2803.0,2802.6,3.56811]
[1740343637750,3.40697637,2803.0,2802.6,3.56805]
[1740343638113,6.97459637,2803.0,2802.6,3.56804]
[1740343638421,3.56773,2802.9,2802.5,3.56823]
[1740343640243,3.56773,2802.9,2802.4,8.77424799]
[1740343640449,0.7956,2802.7,2802.4,5.20588799]
[1740343640744,0.7956,2802.7,2802.5,3.56821]
[1740343640935,1.57263064,2802.9,2802.5,3.56821]
[1740343641420,1.57263064,2802.9,2802.4,5.20588799]
[1740343641421,3.56791,2802.8,2802.4,5.20588799]
[1740343641821,5.14041064,2802.9,2802.4,8.77417799]
[1740343642007,0.7956,2802.7,2802.4,5.20588799]
[1740343642733,0.7956,2802.7,2802.4,8.77422799]
[1740343643541,0.7956,2802.7,2802.4,3.56834]
[1740343644545,0.7956,2802.7,2802.5,0.04763746]
[1740343646061,0.7956,2803.6,2803.1,3.56747]
[1740343646221,0.40709548,2803.5,2803.1,3.56741]
[1740343646553,3.40709548,2803.5,2803.2,0.04703488]
[1740343646754,6.97406548,2803.5,2803.2,0.04703488]
[1740343649558,0.26981154,2803.4,2803.2,0.04703488]
[1740343650435,6.56722,2803.3,2803.2,0.04703488]
[1740343650619,10.12263757,2803.3,2802.5,0.8255]
[1740343650968,10.12263757,2803.3,2802.8,3.56778]
[1740343651363,10.12263757,2803.3,2802.9,0.05202855]
[1740343652782,6.55541757,2803.3,2802.9,3.61968855]
[1740343653093,0.8003,2803.6,2803.0,0.8048]
[1740343653373,0.8003,2803.6,2803.1,0.05841944]
[1740343653537,0.8003,2803.6,2803.2,3.56735]
[1740343653933,0.8003,2803.6,2803.2,3.6340507]
[1740343655068,0.8003,2803.6,2803.3,3.56715]
[1740343656037,0.8003,2803.6,2803.0,3.56757]
[1740343656038,3.56703,2803.5,2803.0,3.56757]
[1740343656568,3.56703,2803.5,2803.1,0.06676508]
[1740343656881,3.56723,2803.3,2802.8,3.56777]
[1740343657036,0.8003,2803.2,2802.8,3.56777]
[1740343657459,0.8003,2803.2,2802.7,9.57856799]
[1740343657787,4.36767,2803.2,2802.7,8.77376799]
[1740343657955,4.36767,2803.2,2802.7,12.34166799]
[1740343658335,4.36767,2803.2,2802.8,3.56784]
[1740343659482,0.8003,2803.2,2802.9,3.56768]
[1740343659653,0.8003,2803.2,2802.8,3.56784]
[1740343659854,0.8003,2803.2,2802.8,3.5678]
[1740343660155,0.8003,2803.2,2802.9,3.56772]
[1740343660944,0.8003,2803.2,2802.8,3.5678]
[1740343661279,0.8003,2803.2,2803.0,3.56754]
[1740343661874,0.8003,2803.2,2803.0,7.13506]
[1740343662060,0.8003,2803.5,2803.1,3.56747]
[1740343662245,0.81308522,2803.4,2803.1,3.56747]
[1740343663290,0.8003,2803.5,2803.1,7.13484]
[1740343663447,0.8003,2803.5,2803.1,3.56737]
[1740343663847,0.8003,2803.5,2803.1,7.13477]
[1740343664194,0.8003,2803.5,2803.1,3.56737]
[1740343664989,0.8003,2803.5,2803.1,7.13479]
[1740343665195,0.8003,2803.5,2803.1,3.56737]
[1740343665402,1.89242498,2803.5,2803.1,3.56737]
[1740343666403,3.56711,2803.4,2802.9,7.13531]
[1740343666572,5.45942498,2803.5,2803.0,3.56753]
[1740343667273,3.5671,2803.4,2802.9,7.13532]
[1740343667803,0.7521,2803.3,2802.9,7.13529]
[1740343667978,1.2932325,2803.3,2802.9,3.56764]
[1740343668601,1.2932325,2803.3,2803.0,3.56757]
[1740343674191,3.5678,2802.9,2802.5,3.5682]
[1740343674410,0.7966,2803.0,2802.7,3.56792]
[1740343674710,0.7966,2803.0,2802.6,3.56807]
[1740343675588,4.36421,2803.0,2802.6,3.56807]
[1740343675973,0.7966,2803.0,2802.6,3.56807]
[1740343676176,0.7966,2803.0,2802.6,3.568]
[1740343676372,0.7966,2803.0,2802.6,3.56803]
[1740343678531,0.7966,2803.0,2802.5,3.56824]
[1740343678873,4.004147,2802.9,2802.5,3.56824]
[1740343679730,0.2649155,2802.8,2802.5,3.56824]
[1740343679930,0.2649155,2802.8,2802.3,3.56841]
[1740343679931,0.2649155,2802.8,2802.4,3.56836]
[1740343680386,0.2649155,2802.8,2802.4,3.63510031]